[Event "Early-Titled-Tuesday-Blitz-April-23-2024"]
[Site "Chess.com"]
[Date "2024.04.23"]
[Round "5"]
[White "Brave_spirit12"]
[Black "Ramla2020"]
[Result "1-0"]
[WhiteElo "2717"]
[BlackElo "2512"]
[TimeControl "180+1"]
[EndTime "8:54:11 PDT"]
[Termination "Brave_spirit12 won by resignation"]

1. e4 {[%clk 0:03:00.9]} 1... e5 {[%clk 0:02:59.5]} 2. Nf3 {[%clk 0:02:57.3]}
2... d6 {[%clk 0:02:59.7]} 3. d4 {[%clk 0:02:55.4]} 3... Nd7 {[%clk 0:03:00.6]}
4. Bc4 {[%clk 0:02:52.3]} 4... c6 {[%clk 0:03:00.8]} 5. Nc3 {[%clk 0:02:51.6]}
5... Be7 {[%clk 0:03:00.7]} 6. a4 {[%clk 0:02:50.3]} 6... Ngf6 {[%clk
0:03:00.6]} 7. a5 {[%clk 0:02:39.5]} 7... O-O {[%clk 0:02:59.6]} 8. O-O {[%clk
0:02:38.1]} 8... Nxe4 {[%clk 0:02:59.5]} 9. Nxe4 {[%clk 0:02:32.2]} 9... d5
{[%clk 0:02:59.4]} 10. Nxe5 {[%clk 0:02:31.9]} 10... Nxe5 {[%clk 0:02:59]} 11.
dxe5 {[%clk 0:02:32.8]} 11... dxc4 {[%clk 0:02:59]} 12. Nd6 {[%clk 0:02:32.6]}
12... Bxd6 {[%clk 0:02:50.4]} 13. exd6 {[%clk 0:02:33.5]} 13... Be6 {[%clk
0:02:50.8]} 14. Qd4 {[%clk 0:02:30.2]} 14... Bd5 {[%clk 0:02:47]} 15. Bf4 {[%clk
0:02:27.7]} 15... Re8 {[%clk 0:02:46.8]} 16. a6 {[%clk 0:02:22.7]} 16... Re4
{[%clk 0:02:38.6]} 17. Qd2 {[%clk 0:02:12]} 17... b5 {[%clk 0:02:30.3]} 18. Rae1
{[%clk 0:02:06.5]} 18... Qd7 {[%clk 0:02:17.3]} 19. f3 {[%clk 0:02:04.1]} 19...
Rxe1 {[%clk 0:02:16.8]} 20. Rxe1 {[%clk 0:02:05]} 20... Re8 {[%clk 0:02:16.7]}
21. Rxe8+ {[%clk 0:02:05.6]} 21... Qxe8 {[%clk 0:02:16.6]} 22. Qe3 {[%clk
0:02:06.5]} 22... Qd7 {[%clk 0:02:01.6]} 23. Qe7 {[%clk 0:02:02.6]} 23... Be6
{[%clk 0:02:01.1]} 24. Be3 {[%clk 0:02:03.2]} 24... f6 {[%clk 0:01:49.3]} 25.
Qxd7 {[%clk 0:01:51.2]} 25... Bxd7 {[%clk 0:01:48.7]} 26. Bxa7 {[%clk
0:01:52.1]} 26... Kf7 {[%clk 0:01:47.3]} 27. Bc5 {[%clk 0:01:53]} 27... Bc8
{[%clk 0:01:47.2]} 28. a7 {[%clk 0:01:51.9]} 28... Bb7 {[%clk 0:01:47.4]} 29. d7
{[%clk 0:01:51.9]} 1-0

[Event "Early-Titled-Tuesday-Blitz-April-23-2024"]
[Site "Chess.com"]
[Date "2024.04.23"]
[Round "5"]
[White "Jojo_898"]
[Black "koncheto"]
[Result "0-1"]
[WhiteElo "2436"]
[BlackElo "2608"]
[TimeControl "180+1"]
[EndTime "8:54:31 PDT"]
[Termination "koncheto won by resignation"]

1. e4 {[%clk 0:03:00.9]} 1... c5 {[%clk 0:02:55.4]} 2. Nf3 {[%clk 0:03:00.1]}
2... d6 {[%clk 0:02:55.4]} 3. c3 {[%clk 0:02:59.8]} 3... Nf6 {[%clk 0:02:55.5]}
4. Bd3 {[%clk 0:02:59.5]} 4... g6 {[%clk 0:02:55.8]} 5. h3 {[%clk 0:02:58]} 5...
Bg7 {[%clk 0:02:55.7]} 6. O-O {[%clk 0:02:58]} 6... O-O {[%clk 0:02:55.6]} 7.
Bc2 {[%clk 0:02:58.5]} 7... Nc6 {[%clk 0:02:54.1]} 8. d4 {[%clk 0:02:58.7]} 8...
cxd4 {[%clk 0:02:55]} 9. cxd4 {[%clk 0:02:58.5]} 9... Nd7 {[%clk 0:02:54.9]} 10.
Nc3 {[%clk 0:02:43.7]} 10... a6 {[%clk 0:02:53.4]} 11. Be3 {[%clk 0:02:41.2]}
11... Rb8 {[%clk 0:02:53.2]} 12. Qd2 {[%clk 0:02:39.2]} 12... b5 {[%clk
0:02:53.1]} 13. Bh6 {[%clk 0:02:36.4]} 13... Bb7 {[%clk 0:02:50.7]} 14. Bxg7
{[%clk 0:02:32.6]} 14... Kxg7 {[%clk 0:02:51.6]} 15. a3 {[%clk 0:02:26.1]} 15...
Rc8 {[%clk 0:02:49.4]} 16. Rfe1 {[%clk 0:02:23.8]} 16... e5 {[%clk 0:02:42]} 17.
d5 {[%clk 0:02:17.5]} 17... Na5 {[%clk 0:02:35.3]} 18. Bd3 {[%clk 0:02:10.5]}
18... Nb3 {[%clk 0:02:33.8]} 19. Qe3 {[%clk 0:02:03.7]} 19... Nxa1 {[%clk
0:02:31.1]} 20. Rxa1 {[%clk 0:02:04.6]} 20... Qb6 {[%clk 0:02:25.3]} 21. Qg5
{[%clk 0:02:03.7]} 21... f6 {[%clk 0:02:24.8]} 22. Qg3 {[%clk 0:02:02.9]} 22...
Nc5 {[%clk 0:02:18.8]} 23. Nh4 {[%clk 0:01:55.1]} 23... Nxd3 {[%clk 0:02:16.3]}
24. Qxd3 {[%clk 0:01:54.8]} 24... b4 {[%clk 0:02:03.8]} 25. axb4 {[%clk
0:01:51.8]} 25... Qxb4 {[%clk 0:02:03.3]} 26. Rb1 {[%clk 0:01:43.6]} 26... a5
{[%clk 0:01:49.8]} 27. Qg3 {[%clk 0:01:38.4]} 27... Rxc3 {[%clk 0:01:40.9]} 28.
Qxc3 {[%clk 0:01:37.1]} 28... Qxe4 {[%clk 0:01:40.8]} 29. Nf3 {[%clk 0:01:29.5]}
29... Qxb1+ {[%clk 0:01:40.3]} 0-1

[Event "Early-Titled-Tuesday-Blitz-April-23-2024"]
[Site "Chess.com"]
[Date "2024.04.23"]
[Round "5"]
[White "whiteglovethief"]
[Black "inagreV"]
[Result "0-1"]
[WhiteElo "2577"]
[BlackElo "2394"]
[TimeControl "180+1"]
[EndTime "8:55:12 PDT"]
[Termination "inagreV won by checkmate"]

1. d4 {[%clk 0:03:00.9]} 1... Nf6 {[%clk 0:02:59.7]} 2. c4 {[%clk 0:03:00.7]}
2... g6 {[%clk 0:02:59.7]} 3. Nc3 {[%clk 0:03:00.7]} 3... Bg7 {[%clk 0:02:59.8]}
4. e4 {[%clk 0:03:00.3]} 4... d6 {[%clk 0:02:59.8]} 5. Nf3 {[%clk 0:03:00.8]}
5... O-O {[%clk 0:02:59.9]} 6. Be2 {[%clk 0:03:01.4]} 6... e5 {[%clk 0:02:59.8]}
7. O-O {[%clk 0:03:01.2]} 7... Bg4 {[%clk 0:03:00]} 8. dxe5 {[%clk 0:02:56.7]}
8... Bxf3 {[%clk 0:02:59.5]} 9. exf6 {[%clk 0:02:54.8]} 9... Bxe2 {[%clk
0:02:59.4]} 10. fxg7 {[%clk 0:02:54]} 10... Bxd1 {[%clk 0:02:59.2]} 11. gxf8=Q+
{[%clk 0:02:54.5]} 11... Qxf8 {[%clk 0:02:59.9]} 12. Rxd1 {[%clk 0:02:54.5]}
12... Nc6 {[%clk 0:03:00.6]} 13. b3 {[%clk 0:02:53.6]} 13... f5 {[%clk
0:02:44.4]} 14. Nd5 {[%clk 0:02:50.9]} 14... Rc8 {[%clk 0:02:38.4]} 15. exf5
{[%clk 0:02:46.4]} 15... Qxf5 {[%clk 0:02:34.8]} 16. b4 {[%clk 0:02:38.5]} 16...
Kf8 {[%clk 0:02:31.3]} 17. Bh6+ {[%clk 0:02:31]} 17... Kf7 {[%clk 0:02:31.5]}
18. Re1 {[%clk 0:02:22.9]} 18... Re8 {[%clk 0:02:16.8]} 19. Rxe8 {[%clk
0:02:21.5]} 19... Kxe8 {[%clk 0:02:16.9]} 20. Nxc7+ {[%clk 0:02:18.9]} 20... Kd7
{[%clk 0:02:17.5]} 21. Nd5 {[%clk 0:02:17]} 21... Ne5 {[%clk 0:02:17.1]} 22. c5
{[%clk 0:01:59.5]} 22... Ng4 {[%clk 0:02:16.2]} 23. Ne3 {[%clk 0:01:58.5]} 23...
Qe5 {[%clk 0:02:12.1]} 24. Rd1 {[%clk 0:01:50.6]} 24... Qxh2+ {[%clk 0:02:10.6]}
25. Kf1 {[%clk 0:01:50]} 25... Nxh6 {[%clk 0:01:59.4]} 26. Rxd6+ {[%clk
0:01:48.5]} 26... Ke8 {[%clk 0:01:55.3]} 27. a3 {[%clk 0:01:35.4]} 27... Nf5
{[%clk 0:01:54.3]} 28. Nxf5 {[%clk 0:01:30.3]} 28... Qh1+ {[%clk 0:01:51.3]} 29.
Ke2 {[%clk 0:01:30.1]} 29... Qh5+ {[%clk 0:01:50.5]} 30. Ke3 {[%clk 0:01:24.1]}
30... Qxf5 {[%clk 0:01:49.7]} 31. g3 {[%clk 0:01:24.1]} 31... Qe5+ {[%clk
0:01:47.8]} 32. Kf3 {[%clk 0:01:13.9]} 32... Qc3+ {[%clk 0:01:47.6]} 33. Kf4
{[%clk 0:01:14.1]} 33... Qxa3 {[%clk 0:01:47.4]} 34. Rd4 {[%clk 0:01:13.9]}
34... Qc3 {[%clk 0:01:46.9]} 35. Ke4 {[%clk 0:01:10.9]} 35... Ke7 {[%clk
0:01:44.4]} 36. f3 {[%clk 0:01:08.7]} 36... Ke6 {[%clk 0:01:40.9]} 37. g4 {[%clk
0:01:05.6]} 37... Qe1+ {[%clk 0:01:40.5]} 38. Kf4 {[%clk 0:01:03.6]} 38... Qe5#
{[%clk 0:01:40.4]} 0-1

[Event "Early-Titled-Tuesday-Blitz-April-23-2024"]
[Site "Chess.com"]
[Date "2024.04.23"]
[Round "5"]
[White "hmatyi07"]
[Black "LeoLV10"]
[Result "0-1"]
[WhiteElo "2303"]
[BlackElo "2500"]
[TimeControl "180+1"]
[EndTime "8:55:43 PDT"]
[Termination "LeoLV10 won by resignation"]

1. e4 {[%clk 0:02:54.9]} 1... c6 {[%clk 0:02:59.8]} 2. c4 {[%clk 0:02:52.9]}
2... d5 {[%clk 0:02:57.9]} 3. cxd5 {[%clk 0:02:52.5]} 3... cxd5 {[%clk
0:02:58.8]} 4. exd5 {[%clk 0:02:53.1]} 4... Nf6 {[%clk 0:02:59.6]} 5. Qa4+
{[%clk 0:02:53]} 5... Nbd7 {[%clk 0:02:59.5]} 6. Nc3 {[%clk 0:02:51.6]} 6... g6
{[%clk 0:03:00.4]} 7. Nf3 {[%clk 0:02:50.6]} 7... Bg7 {[%clk 0:03:00.7]} 8. Bc4
{[%clk 0:02:51.1]} 8... O-O {[%clk 0:03:01.1]} 9. d3 {[%clk 0:02:50.5]} 9... a6
{[%clk 0:02:54.4]} 10. Qa3 {[%clk 0:02:50.2]} 10... Rb8 {[%clk 0:02:52.7]} 11.
Bf4 {[%clk 0:02:39.6]} 11... Ra8 {[%clk 0:02:46.2]} 12. O-O {[%clk 0:02:36.1]}
12... Nb6 {[%clk 0:02:42.6]} 13. Bg5 {[%clk 0:02:04.2]} 13... Bf5 {[%clk
0:02:22.7]} 14. Rfe1 {[%clk 0:01:56.9]} 14... Nfxd5 {[%clk 0:02:14.5]} 15. Nxd5
{[%clk 0:01:50.9]} 15... Nxd5 {[%clk 0:02:15.4]} 16. Bxe7 {[%clk 0:01:27.4]}
16... Nxe7 {[%clk 0:02:15.2]} 17. Qxe7 {[%clk 0:01:27.4]} 17... Bxd3 {[%clk
0:02:12.2]} 18. Bxd3 {[%clk 0:01:08.2]} 18... Qxd3 {[%clk 0:02:13.1]} 19. Rad1
{[%clk 0:00:53.2]} 19... Qb5 {[%clk 0:02:09.3]} 20. b3 {[%clk 0:00:46.5]} 20...
Rae8 {[%clk 0:02:05.3]} 21. Qc7 {[%clk 0:00:41.7]} 21... Rc8 {[%clk 0:01:58.2]}
22. Qf4 {[%clk 0:00:32.7]} 22... Rc2 {[%clk 0:01:45.5]} 23. Re7 {[%clk
0:00:25.5]} 23... Qc5 {[%clk 0:01:30.8]} 24. Ree1 {[%clk 0:00:16.3]} 24... Qxf2+
{[%clk 0:01:29]} 0-1

[Event "Early-Titled-Tuesday-Blitz-April-23-2024"]
[Site "Chess.com"]
[Date "2024.04.23"]
[Round "5"]
[White "DanielNaroditsky"]
[Black "Attacker_2006"]
[Result "0-1"]
[WhiteElo "2995"]
[BlackElo "2563"]
[TimeControl "180+1"]
[EndTime "8:55:50 PDT"]
[Termination "Attacker_2006 won by resignation"]

1. e4 {[%clk 0:03:00.9]} 1... c5 {[%clk 0:02:51.8]} 2. c3 {[%clk 0:03:01.3]}
2... Nf6 {[%clk 0:02:50.2]} 3. e5 {[%clk 0:03:01.4]} 3... Nd5 {[%clk 0:02:50.9]}
4. Nf3 {[%clk 0:03:02.3]} 4... d6 {[%clk 0:02:51.2]} 5. Bb5+ {[%clk 0:03:02.9]}
5... Bd7 {[%clk 0:02:48.9]} 6. Bc4 {[%clk 0:03:02.6]} 6... e6 {[%clk 0:02:46]}
7. O-O {[%clk 0:03:01.9]} 7... Nc6 {[%clk 0:02:45.1]} 8. d4 {[%clk 0:03:01.9]}
8... cxd4 {[%clk 0:02:44.5]} 9. Bxd5 {[%clk 0:03:02]} 9... exd5 {[%clk
0:02:44.3]} 10. Re1 {[%clk 0:03:02.9]} 10... Be6 {[%clk 0:02:36.1]} 11. exd6
{[%clk 0:02:58.6]} 11... Bxd6 {[%clk 0:02:36.2]} 12. Ng5 {[%clk 0:02:59]} 12...
O-O {[%clk 0:02:33.5]} 13. Qh5 {[%clk 0:02:59.4]} 13... Bf5 {[%clk 0:02:29]} 14.
cxd4 {[%clk 0:02:52.4]} 14... Nxd4 {[%clk 0:02:23.4]} 15. Rd1 {[%clk 0:02:49]}
15... Nc2 {[%clk 0:02:14.2]} 16. Nc3 {[%clk 0:02:49.5]} 16... Nxa1 {[%clk
0:02:08.3]} 17. Rxd5 {[%clk 0:02:50]} 17... Qe7 {[%clk 0:01:34.7]} 18. Be3
{[%clk 0:02:40.2]} 18... Bg6 {[%clk 0:01:30.2]} 19. Qd1 {[%clk 0:02:40.5]} 19...
Nc2 {[%clk 0:01:28.3]} 20. Bc1 {[%clk 0:02:29.5]} 20... Rfe8 {[%clk 0:01:25]}
21. Nf3 {[%clk 0:02:20.7]} 21... Rad8 {[%clk 0:01:19]} 22. Bg5 {[%clk 0:02:20]}
22... f6 {[%clk 0:01:15.5]} 23. Bh4 {[%clk 0:02:18.6]} 23... Be4 {[%clk
0:01:14.6]} 24. Nxe4 {[%clk 0:02:15.8]} 24... Qxe4 {[%clk 0:01:15.5]} 25. Bg3
{[%clk 0:02:12.3]} 25... Be7 {[%clk 0:01:07.9]} 26. Rxd8 {[%clk 0:02:08]} 26...
Rxd8 {[%clk 0:01:08.8]} 27. Qc1 {[%clk 0:01:49.4]} 27... Qd3 {[%clk 0:01:09]}
28. h4 {[%clk 0:01:47.4]} 28... Qd1+ {[%clk 0:01:09.1]} 29. Qxd1 {[%clk
0:01:48.2]} 29... Rxd1+ {[%clk 0:01:09.6]} 30. Kh2 {[%clk 0:01:49]} 30... Bd6
{[%clk 0:01:09.5]} 31. Bxd6 {[%clk 0:01:48.4]} 31... Rxd6 {[%clk 0:01:10.4]} 32.
b3 {[%clk 0:01:48.4]} 32... Nd4 {[%clk 0:01:10.6]} 33. Nd2 {[%clk 0:01:48.6]}
33... Ra6 {[%clk 0:01:11.1]} 34. a4 {[%clk 0:01:49]} 34... Rb6 {[%clk
0:01:11.8]} 35. a5 {[%clk 0:01:49.3]} 35... Rxb3 {[%clk 0:01:11.4]} 36. a6
{[%clk 0:01:49.9]} 36... bxa6 {[%clk 0:01:11.5]} 37. h5 {[%clk 0:01:50.7]} 37...
Rb2 {[%clk 0:01:10.7]} 38. Nc4 {[%clk 0:01:51]} 38... Rxf2 {[%clk 0:01:10.9]}
39. h6 {[%clk 0:01:51.4]} 39... gxh6 {[%clk 0:01:10.8]} 40. Ne3 {[%clk
0:01:52.1]} 40... Rf5 {[%clk 0:01:10.4]} 41. g4 {[%clk 0:01:50.5]} 41... Rg5
{[%clk 0:01:10.6]} 42. Kh3 {[%clk 0:01:50.1]} 42... h5 {[%clk 0:01:10.9]} 43.
gxh5 {[%clk 0:01:50.5]} 43... Rxh5+ {[%clk 0:01:11.8]} 44. Kg4 {[%clk
0:01:51.1]} 44... Rg5+ {[%clk 0:01:12.6]} 45. Kh3 {[%clk 0:01:51.8]} 45... Ne6
{[%clk 0:01:13.5]} 46. Kh2 {[%clk 0:01:51.4]} 46... Nf4 {[%clk 0:01:13.6]} 47.
Kh1 {[%clk 0:01:51.5]} 47... a5 {[%clk 0:01:13.5]} 48. Nc2 {[%clk 0:01:48.7]}
48... a4 {[%clk 0:01:13.8]} 49. Na3 {[%clk 0:01:49.4]} 49... Rg3 {[%clk
0:01:12.6]} 50. Nc4 {[%clk 0:01:49.9]} 50... a3 {[%clk 0:01:12.4]} 51. Nd2
{[%clk 0:01:43.4]} 51... a2 {[%clk 0:01:11.2]} 52. Nf1 {[%clk 0:01:41.3]} 0-1

[Event "Early-Titled-Tuesday-Blitz-April-23-2024"]
[Site "Chess.com"]
[Date "2024.04.23"]
[Round "5"]
[White "yonaltimur"]
[Black "rionelG"]
[Result "1-0"]
[WhiteElo "2411"]
[BlackElo "2215"]
[TimeControl "180+1"]
[EndTime "8:55:51 PDT"]
[Termination "yonaltimur won on time"]

1. e4 {[%clk 0:03:00]} 1... c5 {[%clk 0:02:59.7]} 2. Nf3 {[%clk 0:02:59.4]} 2...
d6 {[%clk 0:02:59.9]} 3. Bb5+ {[%clk 0:02:59.4]} 3... Nd7 {[%clk 0:02:59.3]} 4.
O-O {[%clk 0:02:58.4]} 4... a6 {[%clk 0:02:59.6]} 5. Bd3 {[%clk 0:02:50.6]} 5...
Ngf6 {[%clk 0:01:22.6]} 6. c3 {[%clk 0:02:49.7]} 6... b5 {[%clk 0:01:22.1]} 7.
Bc2 {[%clk 0:02:45.7]} 7... Bb7 {[%clk 0:01:21.1]} 8. Re1 {[%clk 0:02:45.7]}
8... Rc8 {[%clk 0:01:20.6]} 9. d4 {[%clk 0:02:44.9]} 9... cxd4 {[%clk
0:01:15.9]} 10. Qxd4 {[%clk 0:02:45]} 10... g6 {[%clk 0:01:13.2]} 11. a4 {[%clk
0:02:44.6]} 11... bxa4 {[%clk 0:01:06.6]} 12. e5 {[%clk 0:02:41.3]} 12... dxe5
{[%clk 0:01:04.7]} 13. Nxe5 {[%clk 0:02:42.2]} 13... Bg7 {[%clk 0:00:49.7]} 14.
Nxd7 {[%clk 0:02:37.5]} 14... Qxd7 {[%clk 0:00:42.1]} 15. Bxa4 {[%clk
0:02:32.6]} 15... Bc6 {[%clk 0:00:37]} 16. Bxc6 {[%clk 0:02:19]} 16... Rxc6
{[%clk 0:00:36]} 17. Be3 {[%clk 0:02:13.7]} 17... Rd6 {[%clk 0:00:26.6]} 18. Qc4
{[%clk 0:02:07.9]} 18... O-O {[%clk 0:00:21.8]} 19. Na3 {[%clk 0:02:06.4]} 19...
e5 {[%clk 0:00:16.5]} 20. Qe2 {[%clk 0:02:02.4]} 20... Ng4 {[%clk 0:00:15.7]}
21. Bc5 {[%clk 0:02:02.4]} 21... Re6 {[%clk 0:00:09.9]} 22. Qxg4 {[%clk
0:02:02]} 22... Rfe8 {[%clk 0:00:09.1]} 23. Rad1 {[%clk 0:02:01.5]} 23... Qc6
{[%clk 0:00:08.7]} 24. Be3 {[%clk 0:02:01.6]} 24... f5 {[%clk 0:00:08.4]} 25.
Qc4 {[%clk 0:02:01.4]} 25... f4 {[%clk 0:00:08]} 26. Qxc6 {[%clk 0:02:01.6]}
26... Rxc6 {[%clk 0:00:07.4]} 27. Bxf4 {[%clk 0:02:01.7]} 27... Bf6 {[%clk
0:00:03.7]} 28. Be3 {[%clk 0:02:00.5]} 28... Kf7 {[%clk 0:00:03.8]} 29. Rd5
{[%clk 0:02:00.9]} 29... Re7 {[%clk 0:00:03.5]} 30. Red1 {[%clk 0:02:01.2]}
30... Ke6 {[%clk 0:00:02.1]} 31. Bc5 {[%clk 0:01:57]} 1-0

[Event "Early-Titled-Tuesday-Blitz-April-23-2024"]
[Site "Chess.com"]
[Date "2024.04.23"]
[Round "5"]
[White "Lily_Schirmbeck"]
[Black "AlainBruxelles"]
[Result "0-1"]
[WhiteElo "1559"]
[BlackElo "2343"]
[TimeControl "180+1"]
[EndTime "8:55:56 PDT"]
[Termination "AlainBruxelles won on time"]

1. e4 {[%clk 0:02:55.7]} 1... c5 {[%clk 0:02:58.5]} 2. Be2 {[%clk 0:02:53.3]}
2... Nc6 {[%clk 0:02:57.5]} 3. d3 {[%clk 0:02:53.3]} 3... g6 {[%clk 0:02:56.8]}
4. f4 {[%clk 0:02:52.4]} 4... Bg7 {[%clk 0:02:57.2]} 5. c3 {[%clk 0:02:53]} 5...
d6 {[%clk 0:02:55.4]} 6. Na3 {[%clk 0:02:53.4]} 6... e6 {[%clk 0:02:51.7]} 7.
Nf3 {[%clk 0:02:53.4]} 7... Nge7 {[%clk 0:02:52.1]} 8. Nc2 {[%clk 0:02:53.8]}
8... O-O {[%clk 0:02:51.4]} 9. O-O {[%clk 0:02:53.1]} 9... a6 {[%clk 0:02:51.1]}
10. Be3 {[%clk 0:02:52.3]} 10... b5 {[%clk 0:02:48.4]} 11. a3 {[%clk 0:02:51.9]}
11... Bb7 {[%clk 0:02:48.3]} 12. Qd2 {[%clk 0:02:52.1]} 12... f5 {[%clk
0:02:46.5]} 13. Rad1 {[%clk 0:02:37.3]} 13... Qc7 {[%clk 0:02:43.4]} 14. Ng5
{[%clk 0:02:35.6]} 14... Nd8 {[%clk 0:02:36.4]} 15. Bf3 {[%clk 0:02:27.6]} 15...
h6 {[%clk 0:02:36.3]} 16. Nh3 {[%clk 0:02:27.8]} 16... Ndc6 {[%clk 0:02:32.2]}
17. d4 {[%clk 0:02:17.2]} 17... Na5 {[%clk 0:02:28.4]} 18. dxc5 {[%clk
0:02:06.5]} 18... dxc5 {[%clk 0:02:27.5]} 19. Qd7 {[%clk 0:02:03.8]} 19... Rac8
{[%clk 0:02:16.8]} 20. e5 {[%clk 0:01:58.4]} 20... Qxd7 {[%clk 0:02:06.4]} 21.
Rxd7 {[%clk 0:01:59.3]} 21... Bxf3 {[%clk 0:02:05.8]} 22. gxf3 {[%clk
0:01:46.9]} 22... Nd5 {[%clk 0:02:05.7]} 23. Bc1 {[%clk 0:01:43.1]} 23... Rfd8
{[%clk 0:02:02.2]} 24. Rxd8+ {[%clk 0:01:43]} 24... Rxd8 {[%clk 0:02:01.8]} 25.
Rd1 {[%clk 0:01:37]} 25... Bf8 {[%clk 0:01:58.8]} 26. Ne3 {[%clk 0:01:33.4]}
26... Be7 {[%clk 0:01:57.9]} 27. Nxd5 {[%clk 0:01:33.4]} 27... exd5 {[%clk
0:01:56.1]} 28. Nf2 {[%clk 0:01:32.6]} 28... Kf7 {[%clk 0:01:53.4]} 29. Nd3
{[%clk 0:01:32.1]} 29... Ke6 {[%clk 0:01:52.6]} 30. Kf2 {[%clk 0:01:25.2]} 30...
d4 {[%clk 0:01:49]} 31. cxd4 {[%clk 0:01:22.2]} 31... cxd4 {[%clk 0:01:47.7]}
0-1

[Event "Early-Titled-Tuesday-Blitz-April-23-2024"]
[Site "Chess.com"]
[Date "2024.04.23"]
[Round "5"]
[White "alex1531"]
[Black "Korchmar_Vasiliy"]
[Result "0-1"]
[WhiteElo "2508"]
[BlackElo "2703"]
[TimeControl "180+1"]
[EndTime "8:56:02 PDT"]
[Termination "Korchmar_Vasiliy won by checkmate"]

1. d4 {[%clk 0:03:00.9]} 1... Nf6 {[%clk 0:02:59.7]} 2. Bg5 {[%clk 0:03:00.7]}
2... c5 {[%clk 0:02:51.8]} 3. d5 {[%clk 0:02:55]} 3... b5 {[%clk 0:02:49.1]} 4.
Bxf6 {[%clk 0:02:47.6]} 4... exf6 {[%clk 0:02:45.4]} 5. e3 {[%clk 0:02:28.7]}
5... g6 {[%clk 0:02:44.3]} 6. Bxb5 {[%clk 0:02:24.2]} 6... Qa5+ {[%clk
0:02:44.4]} 7. Nc3 {[%clk 0:02:23.9]} 7... Bg7 {[%clk 0:02:45]} 8. Ne2 {[%clk
0:02:19.3]} 8... O-O {[%clk 0:02:44.8]} 9. O-O {[%clk 0:02:18.2]} 9... f5 {[%clk
0:02:44]} 10. d6 {[%clk 0:01:46.4]} 10... Bb7 {[%clk 0:02:40.4]} 11. a4 {[%clk
0:01:45.7]} 11... Nc6 {[%clk 0:02:36.2]} 12. Nd5 {[%clk 0:01:34.9]} 12... Bxb2
{[%clk 0:02:15.2]} 13. Rb1 {[%clk 0:01:34.3]} 13... Be5 {[%clk 0:02:03.1]} 14.
f4 {[%clk 0:01:33.1]} 14... Bg7 {[%clk 0:02:02.2]} 15. g4 {[%clk 0:00:41.8]}
15... fxg4 {[%clk 0:01:56.2]} 16. f5 {[%clk 0:00:41.2]} 16... Kh8 {[%clk
0:01:46.2]} 17. Ng3 {[%clk 0:00:28.8]} 17... a6 {[%clk 0:01:34]} 18. Bd3 {[%clk
0:00:20.3]} 18... Nb4 {[%clk 0:01:34.4]} 19. Nxb4 {[%clk 0:00:16.9]} 19... cxb4
{[%clk 0:01:35.3]} 20. Qxg4 {[%clk 0:00:15.4]} 20... Qe5 {[%clk 0:01:27.1]} 21.
Qxb4 {[%clk 0:00:14.1]} 21... Qxe3+ {[%clk 0:01:26.8]} 22. Rf2 {[%clk
0:00:11.1]} 22... Bd4 {[%clk 0:01:27.4]} 23. Qxb7 {[%clk 0:00:05.7]} 23... Qxf2+
{[%clk 0:01:17.8]} 24. Kh1 {[%clk 0:00:05.9]} 24... Rab8 {[%clk 0:01:18.7]} 25.
Qxb8 {[%clk 0:00:04.9]} 25... Qf3# {[%clk 0:01:19.2]} 0-1

[Event "Early-Titled-Tuesday-Blitz-April-23-2024"]
[Site "Chess.com"]
[Date "2024.04.23"]
[Round "5"]
[White "rdarruda"]
[Black "esrosenberg"]
[Result "1-0"]
[WhiteElo "2533"]
[BlackElo "2323"]
[TimeControl "180+1"]
[EndTime "8:56:07 PDT"]
[Termination "rdarruda won by resignation"]

1. Nf3 {[%clk 0:02:53.1]} 1... d5 {[%clk 0:02:59]} 2. d4 {[%clk 0:02:53]} 2...
Bf5 {[%clk 0:02:57.7]} 3. e3 {[%clk 0:02:52]} 3... Nf6 {[%clk 0:02:55.4]} 4. Bd3
{[%clk 0:02:51.7]} 4... e6 {[%clk 0:02:55.3]} 5. Bxf5 {[%clk 0:02:50.7]} 5...
exf5 {[%clk 0:02:54.9]} 6. O-O {[%clk 0:02:51.1]} 6... Nbd7 {[%clk 0:02:45.9]}
7. c4 {[%clk 0:02:49]} 7... c6 {[%clk 0:02:39.3]} 8. Qc2 {[%clk 0:02:48.4]} 8...
g6 {[%clk 0:02:38.3]} 9. b3 {[%clk 0:02:48.4]} 9... Bd6 {[%clk 0:02:35.6]} 10.
Ba3 {[%clk 0:02:47.9]} 10... Bxa3 {[%clk 0:02:33.6]} 11. Nxa3 {[%clk 0:02:48.8]}
11... Qe7 {[%clk 0:02:30.2]} 12. Nb1 {[%clk 0:02:48.1]} 12... h5 {[%clk
0:02:27]} 13. Nc3 {[%clk 0:02:47]} 13... Nb6 {[%clk 0:02:23.9]} 14. Ne2 {[%clk
0:02:45]} 14... h4 {[%clk 0:02:21.8]} 15. Ne5 {[%clk 0:02:39.2]} 15... h3 {[%clk
0:02:17.2]} 16. g3 {[%clk 0:02:38.4]} 16... Ne4 {[%clk 0:02:09.4]} 17. f3 {[%clk
0:02:32.2]} 17... Ng5 {[%clk 0:02:00.3]} 18. Rae1 {[%clk 0:02:29.8]} 18... O-O-O
{[%clk 0:01:55.2]} 19. Nf4 {[%clk 0:02:24.1]} 19... Kb8 {[%clk 0:01:52.6]} 20.
a4 {[%clk 0:02:13.6]} 20... Qb4 {[%clk 0:01:23.8]} 21. Nfd3 {[%clk 0:02:00.7]}
21... Qe7 {[%clk 0:01:16.5]} 22. a5 {[%clk 0:01:59.3]} 22... Nd7 {[%clk
0:00:56.7]} 23. a6 {[%clk 0:01:59.2]} 23... Nxe5 {[%clk 0:00:55.6]} 24. Nxe5
{[%clk 0:01:58.6]} 24... Qb4 {[%clk 0:00:46]} 25. axb7 {[%clk 0:01:56.2]} 25...
Kxb7 {[%clk 0:00:29.9]} 26. cxd5 {[%clk 0:01:50.7]} 26... cxd5 {[%clk
0:00:20.6]} 27. Qc6+ {[%clk 0:01:47.4]} 27... Kb8 {[%clk 0:00:19.7]} 28. Re2
{[%clk 0:01:32.8]} 28... Rhe8 {[%clk 0:00:12.9]} 29. Nd7+ {[%clk 0:01:19.3]}
29... Rxd7 {[%clk 0:00:12.4]} 30. Qxd7 {[%clk 0:01:20.2]} 30... Re6 {[%clk
0:00:11.6]} 31. Qd8+ {[%clk 0:01:18]} 1-0